fUST/lending_fUST_20250626
["ID","MTS","AMOUNT","RATE_DAILY","PERIOD"]
[367613310,1750873844353,-1294.67,0.00016438,2]
[367613311,1750873844363,-531.89,0.00016438,2]
[367613312,1750873844372,-371.11325754,0.00016438,2]
[367613313,1750873844382,-460.0,0.00016438,2]
[367613314,1750873844391,-520.2,0.00016438,2]
[367613315,1750873844402,-460.0,0.00016438,2]
[367613316,1750873844414,-460.0,0.00016438,2]
[367613317,1750873844422,-656.0,0.00016438,2]
[367613318,1750873844431,-319.0,0.00016438,2]
[367613319,1750873844441,-2461.08,0.00016438,2]
[367613320,1750873844451,-665.91,0.00016438,2]
[367613321,1750873844460,-460.0,0.00016438,2]
[367613322,1750873844469,-460.0,0.00016438,2]
[367613323,1750873844478,-460.0,0.00016438,2]
[367613324,1750873844487,-606.18,0.00016438,2]
[367613325,1750873844497,-276.97,0.00016438,2]
[367613326,1750873844506,-2718.74,0.00016438,2]
[367613327,1750873844515,-460.0,0.00016438,2]
[367613328,1750873844527,-460.0,0.00016438,2]
[367613329,1750873844535,-460.0,0.00016438,2]
[367613330,1750873844545,-4329.31,0.00016438,2]
[367613331,1750873844554,-460.0,0.00016438,2]
[367613332,1750873844563,-460.0,0.00016438,2]
[367613333,1750873844573,-460.0,0.00016438,2]
[367613334,1750873844582,-460.0,0.00016438,2]
[367613335,1750873844591,-3686.84,0.00016438,2]
[367613336,1750873844601,-432.79412721,0.00016438,2]
[367613337,1750873844610,-475.67,0.00016438,2]
[367613338,1750873844620,-460.0,0.00016438,2]
[367613339,1750873844629,-460.0,0.00016438,2]
[367613340,1750873844639,-460.0,0.00016438,2]
[367613341,1750873844649,-1150.62,0.00016438,2]
[367613342,1750873844660,-460.0,0.00016438,2]
[367613343,1750873844669,-460.0,0.00016438,2]
[367613344,1750873844679,-460.0,0.00016438,2]
[367613345,1750873844689,-550.93,0.00016438,2]
[367613346,1750873844698,-715.59,0.00016438,2]
[367613347,1750873844709,-460.0,0.00016438,2]
[367613348,1750873844719,-1297.5,0.00016438,2]
[367613349,1750873844728,-496.1,0.00016438,2]
[367613350,1750873844739,-491.74826938,0.00016438,2]
[367613351,1750873844748,-460.0,0.00016438,2]
[367613352,1750873844758,-460.0,0.00016438,2]
[367613353,1750873844767,-460.0,0.00016438,2]
[367613354,1750873844781,-460.0,0.00016438,2]
[367613355,1750873844790,-993.87,0.00016438,2]
[367613356,1750873844799,-460.0,0.00016438,2]
[367613357,1750873844808,-460.0,0.00016438,2]
[367613358,1750873844819,-1110.59,0.00016438,2]
[367613359,1750873844828,-460.0,0.00016438,2]
[367613360,1750873844837,-460.0,0.00016438,2]
[367613361,1750873844846,-460.0,0.00016438,2]
[367613362,1750873844855,-460.0,0.00016438,2]
[367613363,1750873844864,-530.55,0.00016438,2]
[367613364,1750873844873,-1388.67,0.00016438,2]
[367613365,1750873844881,-460.0,0.00016438,2]
[367613366,1750873844891,-429.49,0.00016438,2]
[367613367,1750873844900,-460.0,0.00016438,2]
[367613368,1750873844909,-258.95,0.00016438,2]
[367613369,1750873844918,-460.0,0.00016438,2]
[367613370,1750873844927,-243.15,0.00016438,2]
[367613371,1750873844935,-355.59779378,0.00016438,2]
[367613372,1750873844944,-645.83,0.00016438,2]
[367613373,1750873844953,-460.0,0.00016438,2]
[367613374,1750873844963,-460.0,0.00016438,2]
[367613375,1750873844972,-645.12,0.00016438,2]
[367613376,1750873844980,-460.0,0.00016438,2]
[367613377,1750873844990,-1680.59,0.00016438,2]
[367613378,1750873844999,-1000.0,0.00016438,2]
[367613379,1750873845007,-460.0,0.00016438,2]
[367613380,1750873845017,-457.6814358,0.00016438,2]
[367613381,1750873845030,-460.0,0.00016438,2]
[367613382,1750873845039,-517.86,0.00016438,2]
[367613383,1750873845049,-460.0,0.00016438,2]
[367613384,1750873845059,-602.35853411,0.00016438,2]
[367613385,1750873845068,-408.29384029,0.00016438,2]
[367613386,1750873845078,-511.87,0.00016438,2]
[367613387,1750873845087,-460.0,0.00016438,2]
[367613388,1750873845096,-460.0,0.00016438,2]
[367613389,1750873845106,-460.0,0.00016438,2]
[367613390,1750873845115,-432.84520202,0.00016438,2]
[367613391,1750873845124,-400.0,0.00016438,2]
[367613392,1750873845135,-460.0,0.00016438,2]
[367613393,1750873845144,-460.0,0.00016438,2]
[367613394,1750873845154,-157.45379476,0.00016438,2]
[367613395,1750873845163,-460.0,0.00016438,2]
[367613396,1750873845172,-154.74053132,0.00016438,2]
[367613397,1750873845181,-460.0,0.00016438,2]
[367613398,1750873845190,-460.0,0.00016438,2]
[367613399,1750873845199,-460.0,0.00016438,2]
[367613400,1750873845208,-460.0,0.00016438,2]
[367613401,1750873845218,-461.66201439,0.00016438,2]
[367613402,1750873845227,-460.0,0.00016438,2]
[367613403,1750873845238,-464.14,0.00016438,2]
[367613404,1750873845247,-460.0,0.00016438,2]
[367613405,1750873845257,-2548.7,0.00016438,2]
[367613406,1750873845267,-460.0,0.00016438,2]
[367613407,1750873845280,-1025.43,0.00016438,2]
[367613408,1750873845290,-460.0,0.00016438,2]
[367613409,1750873845300,-1712.64,0.00016438,2]
[367613410,1750873845309,-460.0,0.00016438,2]
[367613411,1750873845319,-890.83,0.00016438,2]
[367613412,1750873845329,-460.0,0.00016438,2]
[367613413,1750873845338,-421.44755692,0.00016438,2]
[367613414,1750873845348,-460.0,0.00016438,2]
[367613415,1750873845357,-460.0,0.00016438,2]
[367613416,1750873845366,-460.0,0.00016438,2]
[367613417,1750873845376,-460.0,0.00016438,2]
[367613418,1750873845386,-460.0,0.00016438,2]
[367613419,1750873845395,-561.32,0.00016438,2]
[367613420,1750873845408,-460.0,0.00016438,2]
[367613421,1750873845417,-460.0,0.00016438,2]
[367613422,1750873845427,-460.0,0.00016438,2]
[367613423,1750873845436,-460.0,0.00016438,2]
[367613424,1750873845446,-460.0,0.00016438,2]
[367613425,1750873845455,-460.0,0.00016438,2]
[367613426,1750873845465,-460.0,0.00016438,2]
[367613427,1750873845475,-231.96166779,0.00016438,2]
[367613428,1750873845484,-904.8,0.00016438,2]
[367613429,1750873845493,-460.0,0.00016438,2]
[367613430,1750873845503,-460.0,0.00016438,2]
[367613431,1750873845513,-651.82,0.00016438,2]
[367613432,1750873845522,-460.0,0.00016438,2]
[367613433,1750873845535,-475.41,0.00016438,2]
[367613434,1750873845546,-460.0,0.00016438,2]
[367613435,1750873845556,-460.0,0.00016438,2]
[367613436,1750873845566,-490.91939001,0.00016438,2]
[367613437,1750873845576,-460.0,0.00016438,2]
[367613438,1750873845585,-460.0,0.00016438,2]
[367613439,1750873845595,-460.0,0.00016438,2]
[367613440,1750873845605,-460.0,0.00016438,2]
[367613441,1750873845614,-460.0,0.00016438,2]
[367613442,1750873845624,-460.0,0.00016438,2]
[367613443,1750873845633,-461.71762502,0.00016438,2]
[367613444,1750873845643,-460.0,0.00016438,2]
[367613445,1750873845652,-460.0,0.00016438,2]
[367613446,1750873845661,-460.0,0.00016438,2]
[367613447,1750873845671,-460.0,0.00016438,2]
[367613448,1750873845680,-460.0,0.00016438,2]
[367613449,1750873845690,-500.0,0.00016438,2]
[367613450,1750873845699,-703.4984073,0.00016647,2]
[367613451,1750873845709,-500.0,0.00016711,2]
[367613452,1750873845718,-500.0,0.00016711,2]
[367613453,1750873845728,-406.19301482,0.00016711,2]
[367613454,1750873845737,-500.0,0.00016711,2]
[367613456,1750873845746,-500.0,0.00016711,2]
[367613457,1750873845756,-500.0,0.00016711,2]
[367613458,1750873845765,-327.54632833,0.00016711,2]
[367613459,1750873845776,-500.0,0.00016711,2]
[367613460,1750873845786,-500.0,0.00016711,2]
[367613461,1750873845795,-500.0,0.00016711,2]
[367613462,1750873845805,-500.0,0.00016711,2]
[367613463,1750873845814,-500.0,0.00016711,2]
[367613465,1750873845824,-500.0,0.00016711,2]
[367613466,1750873845833,-500.0,0.00016711,2]
[367613467,1750873845843,-500.0,0.00016711,2]
[367613468,1750873845852,-384.15450384,0.00016711,2]
[367613469,1750873845861,-500.0,0.00016711,2]
[367613470,1750873845871,-500.0,0.00016711,2]
[367613471,1750873845881,-500.0,0.00016711,2]
[367613472,1750873845890,-500.0,0.00016711,2]
[367613473,1750873845900,-500.0,0.00016711,2]
[367613474,1750873845910,-650.0,0.00016711,2]
[367613475,1750873845920,-500.0,0.00016711,2]
[367613476,1750873845933,-500.0,0.00016711,2]
[367613477,1750873845942,-420.47972615,0.00016712,2]
[367613478,1750873845952,-177.167815,0.00016712,2]
[367613479,1750873845962,-460.0,0.00016712,2]
[367613480,1750873845972,-460.0,0.00016712,2]
[367613481,1750873845982,-151.0,0.00016712,2]
[367613482,1750873845992,-151.0,0.00016712,2]
[367613483,1750873846002,-460.0,0.00016712,2]
[367613484,1750873846011,-460.0,0.00016712,2]
[367613485,1750873846021,-524.65,0.00016712,2]
[367613486,1750873846033,-460.0,0.00016712,2]
[367613487,1750873846043,-460.0,0.00016712,2]
[367613488,1750873846053,-515.32,0.00016712,2]
[367613489,1750873846063,-370.0,0.00016712,2]
[367613490,1750873846073,-460.0,0.00016712,2]
[367613491,1750873846082,-460.0,0.00016712,2]
[367613492,1750873846093,-460.0,0.00016712,2]
[367613493,1750873846103,-460.0,0.00016712,2]
[367613494,1750873846113,-460.0,0.00016712,2]
[367613495,1750873846123,-460.0,0.00016712,2]
[367613496,1750873846132,-460.0,0.00016712,2]
[367613497,1750873846141,-460.0,0.00016712,2]
[367613498,1750873846151,-460.0,0.00016712,2]
[367613499,1750873846161,-460.0,0.00016712,2]
[367613500,1750873846171,-460.0,0.00016712,2]
[367613501,1750873846181,-460.0,0.00016712,2]
[367613502,1750873846190,-460.0,0.00016712,2]
[367613503,1750873846200,-460.0,0.00016712,2]
[367613505,1750873846210,-399.31,0.00016712,2]
[367613507,1750873846223,-687.14,0.00016712,2]
[367613508,1750873846233,-645.6,0.00016712,2]
[367613509,1750873846243,-472.58,0.00016712,2]
[367613510,1750873846252,-460.0,0.00016712,2]
[367613511,1750873846262,-460.0,0.00016712,2]
[367613513,1750873846272,-460.0,0.00016712,2]
[367613514,1750873846283,-998.66,0.00016712,2]
[367613515,1750873846292,-460.0,0.00016712,2]
[367613516,1750873846301,-460.0,0.00016712,2]
[367613517,1750873846311,-460.0,0.00016712,2]
[367613518,1750873846320,-460.0,0.00016712,2]
[367613519,1750873846330,-478.31,0.00016712,2]
[367613520,1750873846340,-460.0,0.00016712,2]
[367613521,1750873846349,-460.0,0.00016712,2]
[367613522,1750873846359,-493.71,0.00016712,2]
[367613523,1750873846368,-460.0,0.00016712,2]
[367613524,1750873846378,-460.0,0.00016712,2]
[367613525,1750873846387,-460.0,0.00016712,2]
[367613526,1750873846397,-460.0,0.00016712,2]
[367613527,1750873846408,-460.0,0.00016712,2]
[367613528,1750873846418,-549.37,0.00016712,2]
[367613529,1750873846428,-460.0,0.00016712,2]
[367613530,1750873846437,-460.0,0.00016712,2]
[367613531,1750873846447,-460.0,0.00016712,2]
[367613532,1750873846457,-460.0,0.00016712,2]
[367613533,1750873846467,-460.0,0.00016712,2]
[367613534,1750873846476,-512.36,0.00016712,2]
[367613535,1750873846487,-460.0,0.00016712,2]
[367613536,1750873846496,-479.55,0.00016712,2]
[367613537,1750873846507,-460.0,0.00016712,2]
[367613538,1750873846516,-460.0,0.00016712,2]
[367613539,1750873846526,-562.27,0.00016712,2]
[367613540,1750873846536,-460.0,0.00016712,2]
[367613541,1750873846546,-460.0,0.00016712,2]
[367613542,1750873846555,-460.0,0.00016712,2]
[367613543,1750873846565,-209.78,0.00016712,2]
[367613544,1750873846575,-460.0,0.00016712,2]
[367613545,1750873846586,-460.0,0.00016712,2]
[367613546,1750873846762,-460.0,0.00016712,2]
[367613547,1750873846771,-460.0,0.00016712,2]
[367613548,1750873846783,-460.0,0.00016712,2]
[367613549,1750873846793,-2072.56,0.00016712,2]
[367613550,1750873846802,-336.43,0.00016712,2]
[367613551,1750873846812,-1978.65,0.00016712,2]
[367613552,1750873846821,-614.81,0.00016712,2]
[367613553,1750873846830,-460.0,0.00016712,2]
[367613554,1750873846839,-3163.27,0.00016712,2]
[367613555,1750873846849,-460.0,0.00016712,2]
[367613556,1750873846858,-1645.78,0.00016712,2]
[367613557,1750873846868,-793.62,0.00016712,2]
[367613558,1750873846877,-460.0,0.00016712,2]
[367613559,1750873846886,-534.37,0.00016712,2]
[367613560,1750873846896,-1054.61,0.00016712,2]
[367613561,1750873846906,-213.91,0.00016712,2]
[367613562,1750873846915,-460.0,0.00016712,2]
[367613563,1750873846924,-460.0,0.00016712,2]
[367613564,1750873846934,-460.0,0.00016712,2]
[367613565,1750873846943,-460.0,0.00016712,2]
[367613566,1750873846953,-460.0,0.00016712,2]
[367613567,1750873846963,-1294.67,0.00016712,2]
[367613568,1750873846972,-531.89,0.00016712,2]
[367613569,1750873846982,-460.0,0.00016712,2]
[367613570,1750873846991,-520.2,0.00016712,2]
[367613571,1750873847001,-460.0,0.00016712,2]
[367613572,1750873847010,-656.0,0.00016712,2]
[367613573,1750873847019,-2461.08,0.00016712,2]
[367613574,1750873847031,-665.91,0.00016712,2]
[367613575,1750873847041,-2718.74,0.00016712,2]
[367613576,1750873847051,-460.0,0.00016712,2]
[367613577,1750873847060,-460.0,0.00016712,2]
[367613578,1750873847070,-4329.31,0.00016712,2]
[367613579,1750873847079,-223.88,0.00016712,2]
[367613580,1750873847089,-460.0,0.00016712,2]
[367613581,1750873847098,-460.0,0.00016712,2]
[367613582,1750873847107,-535.27,0.00016712,2]
[367613583,1750873847116,-3686.84,0.00016712,2]
[367613584,1750873847126,-475.67,0.00016712,2]
[367613585,1750873847136,-460.0,0.00016712,2]
[367613586,1750873847145,-460.0,0.00016712,2]
[367613587,1750873847154,-1150.62,0.00016712,2]
[367613588,1750873847164,-460.0,0.00016712,2]
[367613589,1750873847173,-715.59,0.00016712,2]
[367613590,1750873847183,-1297.5,0.00016712,2]
[367613591,1750873847193,-496.1,0.00016712,2]
[367613592,1750873847202,-493.61217349,0.00016712,2]
[367613593,1750873847211,-460.0,0.00016712,2]
[367613594,1750873847221,-392.2,0.00016712,2]
[367613595,1750873847232,-993.87,0.00016712,2]
[367613596,1750873847242,-460.0,0.00016712,2]
[367613597,1750873847251,-164.43,0.00016712,2]
[367613598,1750873847260,-1110.59,0.00016712,2]
[367613599,1750873847270,-460.0,0.00016712,2]
[367613600,1750873847281,-530.55,0.00016712,2]
[367613601,1750873847291,-1388.67,0.00016712,2]
[367613602,1750873847301,-460.0,0.00016712,2]
[367613603,1750873847311,-645.83,0.00016712,2]
[367613604,1750873847321,-460.0,0.00016712,2]
[367613605,1750873847331,-645.12,0.00016712,2]
[367613606,1750873847342,-1680.59,0.00016712,2]
[367613607,1750873847351,-460.0,0.00016712,2]
[367613608,1750873847361,-511.87,0.00016712,2]
[367613609,1750873847370,-460.0,0.00016712,2]
[367613610,1750873847380,-460.0,0.00016712,2]
[367613611,1750873847389,-460.0,0.00016712,2]
[367613612,1750873847398,-507.29,0.00016712,2]
[367613613,1750873847412,-460.0,0.00016712,2]
[367613614,1750873847422,-460.0,0.00016712,2]
[367613615,1750873847431,-355.58538406,0.00016712,2]
[367613616,1750873847440,-464.14,0.00016712,2]
[367613617,1750873847450,-2548.7,0.00016712,2]
[367613618,1750873847459,-1025.43,0.00016712,2]
[367613619,1750873847468,-1712.64,0.00016712,2]
[367613620,1750873847477,-460.0,0.00016712,2]
[367613621,1750873847486,-460.0,0.00016712,2]
[367613622,1750873847497,-890.83,0.00016712,2]
[367613623,1750873847507,-460.0,0.00016712,2]
[367613624,1750873847516,-233.93,0.00016712,2]
[367613625,1750873847526,-460.0,0.00016712,2]
[367613626,1750873847535,-460.0,0.00016712,2]
[367613627,1750873847545,-460.0,0.00016712,2]
[367613628,1750873847554,-460.0,0.00016712,2]
[367613629,1750873847564,-460.0,0.00016712,2]
[367613630,1750873847573,-460.0,0.00016712,2]
[367613631,1750873847583,-904.8,0.00016712,2]
[367613632,1750873847593,-515.78,0.00016712,2]
[367613633,1750873847602,-651.82,0.00016712,2]
[367613634,1750873847612,-460.0,0.00016712,2]
[367613635,1750873847621,-475.41,0.00016712,2]
[367613636,1750873847631,-460.0,0.00016712,2]
[367613637,1750873847640,-500.0,0.00016712,2]
[367613638,1750873847650,-500.0,0.00016794,2]
[367613639,1750873847659,-500.0,0.00016794,2]
[367613640,1750873847669,-151.0,0.00016794,2]
[367613641,1750873847679,-151.0,0.00016794,2]
[367613642,1750873847689,-151.0,0.00016794,2]
[367613643,1750873847698,-151.0,0.00016794,2]
[367613644,1750873847707,-250.36135806,0.00016794,2]
[367613645,1750873847717,-2050.68028165,0.00016818,2]
[367613646,1750873847726,-500.0,0.00016821,2]
[367613647,1750873847736,-505.40864838,0.00016821,2]
[367613648,1750873847745,-151.0,0.00016821,2]
[367613649,1750873847754,-198.0,0.00016821,2]
[367613650,1750873847764,-151.0,0.00016821,2]
[367613651,1750873847773,-151.0,0.00016821,2]
[367613652,1750873847784,-500.0,0.00016849,2]
[367613653,1750873847793,-151.0,0.00016849,2]
[367613654,1750873847803,-151.0,0.00016849,2]
[367613655,1750873847812,-151.0,0.00016849,2]
[367613656,1750873847821,-500.0,0.00016876,2]
[367613657,1750873847831,-255.16808495,0.00016876,2]
[367613658,1750873847840,-151.0,0.00016876,2]
[367613659,1750873847850,-151.0,0.00016876,2]
[367613660,1750873847859,-500.0,0.00016904,2]
[367613661,1750873847869,-151.0,0.00016904,2]
[367613662,1750873847879,-246.91885301,0.00016904,2]
[367613663,1750873847889,-500.0,0.00016931,2]
[367613664,1750873847898,-245.0,0.00016931,2]
[367613665,1750873847908,-500.0,0.00016958,2]
[367613666,1750873847918,-500.0,0.00016986,2]
[367613667,1750873847927,-460.0,0.00016986,2]
[367613668,1750873847936,-460.0,0.00016986,2]
[367613669,1750873847945,-151.0,0.00016986,2]
[367613670,1750873847954,-151.0,0.00016986,2]
[367613671,1750873847964,-460.0,0.00016986,2]
[367613672,1750873847974,-525.42,0.00016986,2]
[367613673,1750873847982,-260.81427517,0.00016986,2]
[367613674,1750873847992,-460.0,0.00016986,2]
[367613675,1750873848001,-460.0,0.00016986,2]
[367613676,1750873848011,-460.0,0.00016986,2]
[367613677,1750873848021,-460.0,0.00016986,2]
[367613678,1750873848031,-460.0,0.00016986,2]
[367613679,1750873848041,-460.0,0.00016986,2]
[367613680,1750873848050,-460.0,0.00016986,2]
[367613681,1750873848060,-460.0,0.00016986,2]
[367613682,1750873848069,-460.0,0.00016986,2]
[367613683,1750873848080,-460.0,0.00016986,2]
[367613684,1750873848090,-460.0,0.00016986,2]
[367613685,1750873848099,-687.14,0.00016986,2]
[367613686,1750873848109,-645.6,0.00016986,2]
[367613687,1750873848119,-472.58,0.00016986,2]
[367613688,1750873848129,-460.0,0.00016986,2]
[367613689,1750873848139,-460.0,0.00016986,2]
[367613690,1750873848149,-460.0,0.00016986,2]
[367613691,1750873848158,-998.66,0.00016986,2]
[367613692,1750873848168,-460.0,0.00016986,2]
[367613693,1750873848178,-460.0,0.00016986,2]
[367613694,1750873848188,-450.41,0.00016986,2]
[367613695,1750873848198,-460.0,0.00016986,2]
[367613696,1750873848208,-478.31,0.00016986,2]
[367613697,1750873848218,-460.0,0.00016986,2]
[367613698,1750873848227,-460.0,0.00016986,2]
[367613699,1750873848237,-460.0,0.00016986,2]
[367613700,1750873848246,-460.0,0.00016986,2]
[367613701,1750873848256,-460.0,0.00016986,2]
[367613702,1750873848266,-319.81666574,0.00016986,2]
[367613703,1750873848276,-460.0,0.00016986,2]
[367613704,1750873848287,-460.0,0.00016986,2]
[367613705,1750873848297,-460.0,0.00016986,2]
[367613706,1750873848306,-460.0,0.00016986,2]
[367613707,1750873848316,-460.0,0.00016986,2]
[367613708,1750873848326,-460.0,0.00016986,2]
[367613709,1750873848336,-460.0,0.00016986,2]
[367613710,1750873848346,-460.0,0.00016986,2]
[367613711,1750873848356,-362.32954908,0.00016986,2]
[367613712,1750873848366,-460.0,0.00016986,2]
[367613713,1750873848376,-460.0,0.00016986,2]
[367613714,1750873848386,-460.0,0.00016986,2]
[367613715,1750873848395,-460.0,0.00016986,2]
[367613716,1750873848408,-460.0,0.00016986,2]
[367613717,1750873848418,-460.0,0.00016986,2]
[367613718,1750873848428,-1856.77729193,0.00016986,2]
[367613719,1750873848450,-215.78270807,0.00016986,2]
[367613720,1750873848460,-931.03129193,0.00016986,2]
[367613721,1750873848471,-732.95754763,0.00016986,2]
[367613722,1750873848484,-314.66116044,0.00016986,2]
[367613723,1750873848494,-305.75560961,0.00016986,2]
[367613724,1750873848651,-460.0,0.00016438,2]
[367613725,1750873848661,-460.0,0.00016438,2]
[367613726,1750873848670,-348.99548502,0.00016712,2]
[367613727,1750873848686,-111.00451498,0.00016712,2]
[367613728,1750873848697,-309.05439039,0.00016986,2]
[367613729,1750873848707,-460.0,0.00016986,2]
[367613730,1750873848717,-1166.18678087,0.00016986,2]
[367613731,1750873849061,-477.50172852,0.00016986,2]
[367613732,1750873849078,-460.0,0.00016438,2]
[367613733,1750873849088,-1519.58149061,0.00016986,2]
[367613734,1750873849098,-1645.78,0.00016986,2]
[367613735,1750873849108,-793.62,0.00016986,2]
[367613736,1750873849117,-460.0,0.00016986,2]
[367613737,1750873849126,-534.37,0.00016986,2]
[367613738,1750873849136,-1054.61,0.00016986,2]
[367613739,1750873849145,-212.85,0.00016986,2]
[367613740,1750873849155,-460.0,0.00016986,2]
[367613741,1750873849164,-460.0,0.00016986,2]
[367613742,1750873849174,-460.0,0.00016986,2]
[367613743,1750873849184,-1294.67,0.00016986,2]
[367613744,1750873849193,-531.89,0.00016986,2]
[367613745,1750873849203,-460.0,0.00016986,2]
[367613746,1750873849213,-520.2,0.00016986,2]
[367613747,1750873849224,-656.0,0.00016986,2]
[367613748,1750873849233,-2461.08,0.00016986,2]
[367613749,1750873849243,-665.91,0.00016986,2]
[367613750,1750873849252,-2718.74,0.00016986,2]
[367613751,1750873849262,-460.0,0.00016986,2]
[367613752,1750873849271,-460.0,0.00016986,2]
[367613753,1750873849281,-4329.31,0.00016986,2]
[367613754,1750873849291,-460.0,0.00016986,2]
[367613755,1750873849300,-3686.84,0.00016986,2]
[367613756,1750873849309,-475.67,0.00016986,2]
[367613757,1750873849318,-460.0,0.00016986,2]
[367613758,1750873849328,-460.0,0.00016986,2]
[367613759,1750873849338,-1150.62,0.00016986,2]
[367613760,1750873849347,-460.0,0.00016986,2]
[367613761,1750873849358,-715.59,0.00016986,2]
[367613762,1750873849367,-1297.5,0.00016986,2]
[367613763,1750873849377,-496.1,0.00016986,2]
[367613764,1750873849387,-460.0,0.00016986,2]
[367613765,1750873849397,-993.87,0.00016986,2]
[367613766,1750873849410,-1110.59,0.00016986,2]
[367613767,1750873849420,-1388.67,0.00016986,2]
[367613768,1750873849430,-530.55,0.00016986,2]
[367613769,1750873849440,-460.0,0.00016986,2]
[367613770,1750873849449,-645.83,0.00016986,2]
[367613771,1750873849459,-460.0,0.00016986,2]
[367613772,1750873849469,-645.12,0.00016986,2]
[367613773,1750873849478,-1680.59,0.00016986,2]
[367613774,1750873849488,-266.94393791,0.00016986,2]
[367613775,1750873849498,-511.87,0.00016986,2]
[367613776,1750873849508,-460.0,0.00016986,2]
[367613777,1750873849518,-460.0,0.00016986,2]
[367613778,1750873849528,-460.0,0.00016986,2]
[367613779,1750873849538,-460.0,0.00016986,2]
[367613780,1750873849548,-460.0,0.00016986,2]
[367613781,1750873849559,-464.14,0.00016986,2]
[367613782,1750873849569,-2548.7,0.00016986,2]
[367613783,1750873849579,-1025.43,0.00016986,2]
[367613784,1750873849588,-1712.64,0.00016986,2]
[367613785,1750873849598,-460.0,0.00016986,2]
[367613786,1750873849607,-890.83,0.00016986,2]
[367613787,1750873849619,-460.0,0.00016986,2]
[367613788,1750873849630,-326.52,0.00016986,2]
[367613789,1750873849639,-460.0,0.00016986,2]
[367613790,1750873849649,-460.0,0.00016986,2]
[367613791,1750873849658,-460.0,0.00016986,2]
[367613792,1750873849668,-460.0,0.00016986,2]
[367613793,1750873849678,-904.8,0.00016986,2]
[367613794,1750873849687,-651.82,0.00016986,2]
[367613795,1750873849697,-460.0,0.00016986,2]
[367613796,1750873849706,-475.41,0.00016986,2]
[367613797,1750873849716,-460.0,0.00016986,2]
[367613798,1750873849726,-460.0,0.00016986,2]
[367613799,1750873849735,-500.0,0.00016986,2]
[367613800,1750873849746,-406.0,0.00017013,2]
[367613801,1750873849756,-215.31345392,0.00017023,2]
[367613802,1750873849765,-500.0,0.00017065,2]
[367613803,1750873849775,-540.73312332,0.00017078,2]
[367613804,1750873849785,-500.0,0.00017078,2]
[367613805,1750873849794,-500.0,0.00017078,2]
[367613806,1750873849804,-168.0,0.00017083,2]
[367613807,1750873849814,-160.0,0.00017115,2]
[367613808,1750873849823,-160.0,0.00017115,2]
[367613809,1750873849832,-846.80634355,0.00017115,2]
[367613810,1750873849842,-213.69531788,0.00017115,2]
[367613811,1750873849851,-425.18553072,0.00017115,2]
[367613812,1750873849860,-160.0,0.00017115,2]
[367613813,1750873849870,-160.0,0.00017115,2]
[367613814,1750873849880,-524.21181985,0.00017115,2]